Cogmind - Beta 11.1 @@@ ROGUE MODE // 2022.05.19 @ 10:09:17 Player: Jamuson Result: Destroyed by Executioner with Helical Railgun Performance ------------- Evolutions (5) 2500 Regions Visited (13) 2600 Robots Destroyed (208) 1040 Value Destroyed (7870) 7870 Prototype IDs (44) 880 Alien Tech Used (0) 0 Bonus (2287) 2287 TOTAL SCORE: 17177 Bonus ------- High Alert Combat Kills 993 Follower Combat Kills 433 Aligned with FarCom 300 MAIN.C Attacked Warlord 500 Warlord Defense Kills 154 Friendly Fire -93 Cogmind --------- Core Integrity 0/1000 Matter 145/300 Energy 4/100 System Corruption 1% Temperature Cool (11) Movement Walking (270) Ox2 Location -5/Warlord Parts ------- > --- POWER (1) -------- (None) > --- PROPULSION (4) --- Advanced VSS Leg > --- UTILITY (8) ------ Advanced Cooling System Large Storage Unit Targeting Computer Improved Target Analyzer Core Analyzer Improved Hacking Suite Makeshift System Shield > --- WEAPON (4) ------- Vortex Rail Enhanced Coil Gun Enhanced Coil Gun > --- INVENTORY (15) --- Advanced VSS Leg Advanced ECM Suite Hardened Heavy Armor Plating Hardened Heavy Armor Plating Vortex Rifle (35) Vortex Rifle (35) Vortex Rail (40) Latent Energy Streamer Enhanced Coil Gun Enhanced Coil Gun Heavy Missile Launcher Phasing Sabre Peak State ------------ > --- POWER ------------ Antimatter Reactor > --- PROPULSION ------- Flexi-carbon Leg Flexi-carbon Leg Armored Leg Advanced VSS Leg > --- UTILITY ---------- Advanced Cooling System Large Storage Unit Targeting Computer Improved Target Analyzer Core Analyzer Improved Hacking Suite Makeshift System Shield Minesniffer Drone Bay > --- WEAPON ----------- Vortex Rail Enhanced Coil Gun Enhanced Coil Gun Enhanced Coil Gun > --- INVENTORY -------- Advanced VSS Leg Advanced ECM Suite Hardened Heavy Armor Plating Hardened Heavy Armor Plating Vortex Rifle Vortex Rifle Vortex Rail Latent Energy Streamer Enhanced Coil Gun Enhanced Coil Gun Enhanced Coil Gun Heavy Missile Launcher Kinetic Spear [Rating: 103] Favorites ----------- Power Improved Deuterium Engine Engine Improved Deuterium Engine Power Core Light Nuclear Core Reactor Antimatter Reactor Propulsion VSS Leg Treads Armored Treads Leg VSS Leg Wheel Wheel Utility Large Storage Unit Device Structural Scanner Storage Large Storage Unit Processor Core Analyzer Hackware Improved Hacking Suite Protection Hardened Light Armor Plating Weapon Hypervelocity Gauss Rifle Energy Gun EM Pulse Gun Energy Cannon Heavy Particle Cannon Ballistic Gun Hypervelocity Gauss Rifle Ballistic Cannon Flak Cannon Launcher Rocket Launcher Impact Weapon Great Maul Slashing Weapon Axe Piercing Weapon Kinetic Spear Special Melee Weapon Dirty Datajack Build | -11 -10 -10 -9 -9 -9 -8 -8 -7 -6 -5 -5 -5 -5 ------- Run | Scr Mat Min Mat Min Exi Min Mat Fac Fac Fac Upp Upp War Slots Evolved 10 | . . . 2 . . . 2 2 2 2 . . . Power . | . . . . . . . . . . . . . . Propulsion 2 | . . . . . . . 1 . 1 . . . . Utility 6 | . . . 2 . . . . 1 1 2 . . . Weapon 2 | . . . . . . . 1 1 . . . . . Parts Attached 261 | 5 10 3 13 14 2 1 7 70 24 83 7 7 15 Power 23 | 2 2 . 1 1 . . . 6 3 7 . 1 . Engine 19 | 2 2 . 1 1 . . . 5 3 5 . . . Core 3 | . . . . . . . . 1 . 2 . . . Reactor 1 | . . . . . . . . . . . . 1 . Propulsion 60 | 2 1 1 4 6 . . 1 16 5 20 2 2 . Treads 8 | . . . . . . . . 8 . . . . . Leg 33 | . . . 1 2 . . . 3 5 18 2 2 . Wheel 19 | 2 1 1 3 4 . . 1 5 . 2 . . . Hover . | . . . . . . . . . . . . . . Flight . | . . . . . . . . . . . . . . Utility 75 | 1 3 . 5 3 1 . 2 21 10 23 2 . 4 Device 30 | . . . 3 3 . . . 5 5 10 1 . 3 Storage 5 | 1 1 . . . 1 . . 2 . . . . . Processor 14 | . . . 1 . . . 2 3 1 6 . . 1 Hackware 5 | . . . . . . . . . 2 2 1 . . Protection 21 | . 2 . 1 . . . . 11 2 5 . . . Artifact . | . . . . . . . . . . . . . . Weapon 103 | . 4 2 3 4 1 1 4 27 6 33 3 4 11 Energy Gun 17 | . 3 1 1 1 . . . 9 . . . . 2 Energy Cannon 7 | . . . . . 1 . 1 4 . . . . 1 Ballistic Gun 45 | . 1 . 2 2 . . 1 7 . 22 2 2 6 Ballistic Cannon 3 | . . . . . . . . 3 . . . . . Launcher 10 | . . 1 . 1 . 1 2 1 1 . 1 2 . Special Weapon . | . . . . . . . . . . . . . . Impact Weapon 8 | . . . . . . . . 2 2 4 . . . Slashing Weapon 7 | . . . . . . . . 1 3 2 . . 1 Piercing Weapon 5 | . . . . . . . . . . 5 . . . Special Melee Weapon 1 | . . . . . . . . . . . . . 1 Unidentified Prototypes 11 | . . . 1 1 . . . 3 . 3 . . 3 Parts Lost 76 | . 1 . 5 6 . . 1 24 1 27 . 4 7 Power 9 | . 1 . . . . . . 3 . 3 . 1 1 Propulsion 23 | . . . 1 2 . . . 8 1 6 . 2 3 Utility 21 | . . . 1 2 . . 1 4 . 12 . . 1 Weapon 23 | . . . 3 2 . . . 9 . 6 . 1 2 Highest Loss Streak 7 | . 1 . 2 2 . . 1 7 1 5 . 3 7 To Critical Strikes . | . . . . . . . . . . . . . . Average Slot Usage (%) 91 | . 96 100 87 87 94 100 95 91 94 90 81 91 97 Engine 6 | . 14 14 11 11 11 11 9 3 6 4 5 2 . Treads 1 | . . . . . . . . 7 . . . . . Leg 10 | . . . . 5 . . . . 25 17 19 22 22 Wheel 9 | . 28 28 18 15 22 22 24 13 . 1 . . . Device 7 | . . . 13 18 22 22 8 6 5 3 9 11 10 Storage 8 | . 14 14 11 11 16 22 18 7 6 5 5 5 5 Processor 10 | . . . . 2 . . 7 11 13 18 11 11 14 Hackware 4 | . . . . . . . . . 8 9 9 11 11 Protection 5 | . 10 14 10 . . . . 8 2 3 . . . Energy Gun 4 | . 18 28 6 8 11 11 9 4 1 . . . 4 Energy Cannon 1 | . . . . . 5 . 8 4 1 . . . . Ballistic Gun 10 | . 9 . 15 11 5 . 4 9 5 11 11 21 17 Ballistic Cannon 1 | . . . . . . . . 7 1 . . . . Impact Weapon 1 | . . . . . . . . 1 5 2 . . . Slashing Weapon 2 | . . . . . . . . . 6 6 . . . Naked Turns . | . . . . . . . . . . . . . . Heaviest Build 124 | 10 94 94 98 97 101 95 106 124 56 68 58 65 70 Greatest Support 74 | 26 26 26 28 34 20 20 30 63 52 74 56 74 74 Greatest Overweight (x) 12 | . 3 3 8 9 5 4 5 12 1 2 1 1 2 Average Overweight (x) 1 | . 2 3 4 3 4 4 3 3 . . . . . Largest Inventory Capacity 25 | 8 25 25 25 25 25 25 25 25 15 15 15 15 15 Average Capacity 19 | 7 22 25 25 25 25 25 25 24 15 15 15 15 15 Most Carried 25 | 6 21 23 25 25 25 25 25 25 15 15 12 10 15 Average Carried 17 | 3 13 22 23 22 24 25 24 20 14 13 11 9 12 Final Capacity 25 | 8 25 25 25 25 25 25 25 15 15 15 15 15 15 Final Carried 25 | 6 21 23 25 25 25 25 25 15 14 12 10 7 14 Class Distribution -------------------- 23% | Mutant 18% | Scavenger-Gunner 18% | Hacker-Mutant 16% | Scavenger-Mutant 7% | Scavenger-Skirmisher 4% | Hacker-Gunner 4% | Scavenger-Tank 3% | Skirmisher Dominant Class ---------------- Mutant | -10/Materials Mutant | -10/Mines Mutant | -9/Materials Scavenger-Mutant | -9/Mines Scavenger-Mutant | -9/Exiles Scavenger-Mutant | -8/Mines Scavenger-Skirmisher | -8/Materials Scavenger-Skirmisher | -7/Factory Hacker-Mutant | -6/Factory Hacker-Mutant | -5/Factory Scavenger-Mutant | -5/Upper Caves Scavenger-Gunner | -5/Upper Caves Scavenger-Gunner | -5/Warlord Resources | -11 -10 -10 -9 -9 -9 -8 -8 -7 -6 -5 -5 -5 -5 ----------- Run | Scr Mat Min Mat Min Exi Min Mat Fac Fac Fac Upp Upp War Matter Collected 5615 | 250 280 48 417 338 . 32 215 1465 295 1797 179 299 . Remotely . | . . . . . . . . . . . . . . Salvage Created 8419 | . 618 19 1032 153 . 32 730 1656 368 3283 185 243 100 Parts 422 | . 41 4 64 . . 8 44 65 22 146 6 17 5 Haulers Intercepted 7 | . 2 . 2 . . . 2 . . 1 . . . Recyclers Shooed 4 | . . . 1 . . . . 2 . 1 . . . Parts Field Recycled . | . . . . . . . . . . . . . . Retrieved Matter . | . . . . . . . . . . . . . . Parts Self-Destructed 20 | . . . . . . . . . . . 6 14 . Prevented . | . . . . . . . . . . . . . . Kills | -11 -10 -10 -9 -9 -9 -8 -8 -7 -6 -5 -5 -5 -5 ------- Run | Scr Mat Min Mat Min Exi Min Mat Fac Fac Fac Upp Upp War Combat Hostiles Destroyed 191 | . 14 3 23 12 . 4 17 39 9 55 5 8 2 Melee 28 | . . . . . . . . 2 3 23 . . . Guns 87 | . 12 . 23 10 . 1 1 10 . 22 3 4 1 Cannons 20 | . . . . . . . . 20 . . . . . AOE 36 | . 2 3 . 2 . 3 16 . 3 . 2 4 1 Classes Destroyed 18 | . 5 1 2 2 . . 4 4 . . . . . Worker 5 | . 1 . 1 . . . 1 . . 2 . . . Builder 7 | . . . . . . . 3 . . 4 . . . Tunneler 3 | . . 1 . . . . 1 1 . . . . . Hauler 7 | . 2 . 2 . . . 2 . . 1 . . . Recycler 6 | . . . 1 . . . . 1 . 4 . . . Operator 1 | . . . . . . . 1 . . . . . . Watcher 12 | . 2 . 4 . . . 1 1 3 1 . . . Swarmer 45 | . 6 3 8 . . 4 8 2 3 3 2 5 1 Grunt 51 | . 8 . 13 . . . 5 11 2 11 . . 1 Brawler 4 | . . . . . . . . 2 . . 2 . . Duelist 2 | . . . . . . . . 1 . 1 . . . Protector 2 | . . . . . . . 1 1 . . . . . Sentry 19 | . . . 2 . . . . 10 1 4 1 1 . Demolisher 2 | . . . . 1 . . . 1 . . . . . Specialist 9 | . . . . . . . 3 2 . 4 . . . Hunter 13 | . . . . . . . . 5 . 6 . 2 . Programmer 20 | . . . . . . . . 4 3 13 . . . Assembled 24 | . . . . 11 . . . . . 13 . . . Best Kill Streak 16 | . 9 4 5 7 . 3 16 5 3 13 5 3 2 Combat Bots Only 13 | . 8 3 5 7 . 3 11 5 3 13 5 3 2 Max Kills in Single Turn 4 | . 2 4 2 2 . 2 4 1 2 2 2 2 1 Gunslinging 1 | . . . 1 . . . . . . . 1 . . Exploded 4 | . 2 3 . 2 . 2 4 . 2 . 1 2 1 Melee 2 | . . . . . . . . 1 1 2 . . . Uniques/NPCs Destroyed . | . . . . . . . . . . . . . . Combat | -11 -10 -10 -9 -9 -9 -8 -8 -7 -6 -5 -5 -5 -5 -------- Run | Scr Mat Min Mat Min Exi Min Mat Fac Fac Fac Upp Upp War Damage Taken 13994 | . 338 22 620 1097 . 21 137 4366 471 4905 313 776 928 Core 1783 | . 40 . 65 224 . 6 2 399 43 698 29 57 220 Absorbed by Shields 172 | . . . . . . . . 70 . 102 . . . Redirected to Shielding 109 | . . . . . . . . . . 109 . . . Regen/Repaired (Parts) 650 | . . . . . . . . 102 . 548 . . . Core Remaining (%) 74 | 100 . 84 . . . 26 99 43 94 . . . . Volleys Fired 377 | . 32 1 87 41 . 4 18 106 5 64 4 13 2 Largest 4 | . 2 1 2 2 . 1 3 4 1 4 4 4 3 Hottest 218 | . 80 33 80 63 . 40 123 218 39 132 123 123 90 Shots Fired 883 | . 64 1 173 76 . 4 26 256 5 228 11 35 4 Gun 717 | . 64 . 173 75 . 2 10 118 3 228 9 32 3 Cannon 147 | . . . . . . . 10 136 . . . . 1 Launcher 19 | . . 1 . 1 . 2 6 2 2 . 2 3 . Special . | . . . . . . . . . . . . . . Kinetic 629 | . 22 . 97 60 . . 5 170 3 228 9 32 3 Thermal 61 | . . . . . . . . 61 . . . . . Explosive 19 | . . 1 . 1 . 2 6 2 2 . 2 3 . Electromagnetic 174 | . 42 . 76 15 . 2 15 23 . . . . 1 Robot Hit Streak 16 | . 6 . 11 11 . 3 6 16 2 8 3 10 8 Robot Miss Streak 12 | . 5 . 5 4 . . 2 12 1 9 2 5 1 Penetration Max 2 | . . . . . . . . 1 . 2 . . . Secondary Targets 14 | . 3 . 4 1 . . . . . 3 1 1 1 Max Gunslinging Chain 1 | . 1 . 1 1 . . . . . 1 1 1 1 Shots Hit Robots 684 | . 33 . 101 41 . 2 13 195 27 245 4 21 2 Core Hits 410 | . 22 4 45 24 . 3 48 133 9 89 11 14 8 Critical Kills 26 | . . . . . . . . 4 . 19 3 . . Critical Parts Destroyed 50 | . . . 1 . . . . 5 5 38 . 1 . Critical Strikes 87 | . . . 5 . . . . 11 6 61 3 1 . Meltdown 2 | . . . . . . . . 2 . . . . . Destroy 31 | . . . 1 . . . . . . 26 3 1 . Blast 1 | . . . . . . . . 1 . . . . . Corrupt 5 | . . . 4 . . . . 1 . . . . . Smash 44 | . . . . . . . . 7 5 32 . . . Sever 4 | . . . . . . . . . 1 3 . . . Melee Attacks 247 | . . . . . . . . 18 46 183 . . . Impact 160 | . . . . . . . . 18 33 109 . . . Slashing 81 | . . . . . . . . . 13 68 . . . Piercing 6 | . . . . . . . . . . 6 . . . Sneak Attacks 13 | . . . . . . . . 1 1 11 . . . Combat Hostiles 3 | . . . . . . . . . 1 2 . . . Follow-up Attacks 53 | . . . . . . . . . 6 47 . . . Damage Inflicted 20955 | . 556 184 1676 689 . 186 2490 4696 1320 7566 452 953 187 Guns 6596 | . 499 . 1614 603 . 25 92 1316 48 1631 89 640 39 Cannons 2442 | . . . . . . . 44 2394 . . . . 4 Explosions 4464 | . 57 184 62 86 . 161 2354 498 242 . 363 313 144 Melee 7453 | . . . . . . . . 488 1030 5935 . . . Ramming . | . . . . . . . . . . . . . . Kinetic 6590 | . 149 . 923 499 . . 44 2528 48 1631 89 640 39 Thermal 1030 | . 26 . 62 . . . . 942 . . . . . Explosive 2397 | . . 184 . 86 . 161 833 215 242 . 363 313 . Electromagnetic 3485 | . 381 . 691 104 . 25 1613 523 . . . . 148 Impact 5558 | . . . . . . . . 488 808 4262 . . . Slashing 1895 | . . . . . . . . . 222 1673 . . . Piercing . | . . . . . . . . . . . . . . Highest Corruption 23 | . . . . 5 5 5 23 9 2 18 18 18 18 Average Corruption 9 | . . . . 5 5 5 13 6 1 13 18 18 12 Corruption Purged . | . . . . . . . . . . . . . . Corruption Blocked 14 | . . . . . . . . . . 14 . . . Effects 319 | . . . . 21 8 6 14 66 3 139 19 41 2 Message Errors 89 | . . . . 7 1 . 4 20 1 36 4 15 1 Matter Fused 77 | . . . . 4 . 3 4 17 1 31 6 11 . Heat Flow Errors 41 | . . . . 4 2 . 4 7 . 17 2 4 1 Energy Discharges 34 | . . . . 1 1 1 1 4 1 20 3 2 . Parts Rejected 3 | . . . . . . . . . . 3 . . . Data Loss (minor) 34 | . . . . 3 4 1 . 7 . 12 2 5 . Data Loss (major) 12 | . . . . . . 1 1 3 . 7 . . . Misfires 8 | . . . . . . . . 4 . 2 1 1 . Alerts 6 | . . . . 1 . . . 2 . 1 1 1 . Misdirections 3 | . . . . . . . . . . 3 . . . Weapon Failures 12 | . . . . 1 . . . 2 . 7 . 2 . Overload Shots . | . . . . . . . . . . . . . . Overflow Damage 2814 | . 3 . . . . 25 40 267 279 2131 69 . . Projectiles 16 | . . . . . . . . 3 . 13 . . . Explosions 137 | . 3 . . . . 25 40 . . . 69 . . Melee 2661 | . . . . . . . . 264 279 2118 . . . Knockbacks 40 | . . . . . . . . 19 5 16 . . . Impact 21 | . . . . . . . . 2 5 14 . . . Kinetic 17 | . . . . . . . . 17 . . . . . Secondary 2 | . . . . . . . . . . 2 . . . Self-Inflicted Damage 111 | . 61 . . . . . 5 45 . . . . . Shots 6 | . 3 . . . . . 1 2 . . . . . Rammed . | . . . . . . . . . . . . . . Targets Rammed . | . . . . . . . . . . . . . . Kicked . | . . . . . . . . . . . . . . Crushed . | . . . . . . . . . . . . . . Highest Temperature 546 | . 165 2 270 288 263 . 233 546 . 502 252 187 129 Average Temperature 128 | . 40 1 93 146 121 . 71 161 . 138 117 85 60 Received Heat Transfer 2640 | . 72 . 177 20 . . 18 1221 111 861 36 . 124 Effects 41 | . . . 1 . . . . 33 . 7 . . . Shutdowns 7 | . . . . . . . . 4 . 3 . . . Energy Bleed 4 | . . . 1 . . . . 1 . 2 . . . Interference 17 | . . . . . . . . 15 . 2 . . . Matter Decay 1 | . . . . . . . . 1 . . . . . Short Circuit 3 | . . . . . . . . 3 . . . . . Damage (minor) 2 | . . . . . . . . 2 . . . . . Damage (major) 7 | . . . . . . . . 7 . . . . . Siege Activations . | . . . . . . . . . . . . . . Robots Corrupted 3 | . 1 . . . . . . 2 . . . . . Combat Hostiles 2 | . . . . . . . . 2 . . . . . Parts Fried 39 | . 2 . 4 . . . 3 6 5 19 . . . Impact Corruptions 79 | . . . . . . . . 11 11 57 . . . Robots Melted 2 | . . . . . . . . 2 . . . . . Combat Hostiles 2 | . . . . . . . . 2 . . . . . Parts Melted 6 | . . . . . . . . 4 1 1 . . . Heat Transferred 1615 | . 50 . 100 . . . . 1465 . . . . . Parts Sabotaged . | . . . . . . . . . . . . . . Parts Stolen . | . . . . . . . . . . . . . . Parts Stripped . | . . . . . . . . . . . . . . Power Chain Reactions 4 | . 3 . 1 . . . . . . . . . . Missiles Intercepted . | . . . . . . . . . . . . . . Latent Energy Used 1463 | . . . . . . . 1314 107 . . . . 42 LE Corruption 26 | . . . . . . . 23 2 . . . . 1 Alert | -11 -10 -10 -9 -9 -9 -8 -8 -7 -6 -5 -5 -5 -5 ------- Run | Scr Mat Min Mat Min Exi Min Mat Fac Fac Fac Upp Upp War Peak Influence 1013 | . 380 163 577 199 . 180 1013 937 458 733 . . . Initial 460 | . . 58 63 179 . . 70 460 458 129 . . . Average 360 | . 224 162 400 85 . 167 573 595 304 273 . . . Maximum Alert Level 3 | . 1 . 2 . . . 3 3 2 3 . . . Low Security (%) 25 | 100 35 100 8 100 . 100 32 . 7 29 . . . Level 1 38 | . 64 . 30 . . . 4 19 69 56 . . . Level 2 25 | . . . 60 . . . 14 44 23 12 . . . Level 3 11 | . . . . . . . 47 36 . 1 . . . Level 4 . | . . . . . . . . . . . . . . Level 5 . | . . . . . . . . . . . . . . High Security . | . . . . . . . . . . . . . . Max Security . | . . . . . . . . . . . . . . Squads Dispatched 69 | . 3 . 7 1 . . 5 25 5 23 . . . Investigation 19 | . 3 . 3 1 . . . 4 . 8 . . . Extermination 14 | . . . . . . . . 5 3 6 . . . Reinforcement 21 | . . . 4 . . . 2 4 2 9 . . . Assault 2 | . . . . . . . 1 1 . . . . . Garrison 13 | . . . . . . . 2 11 . . . . . Intercept . | . . . . . . . . . . . . . . Searches Triggered . | . . . . . . . . . . . . . . Construction Impeded 1 | . . . . . . . . 1 . . . . . Haulers Reinforced 3 | . . . . . . . . 1 . 2 . . . Active Scanning Responses . | . . . . . . . . . . . . . . Cargo Convoy Interrupts 1 | . . . . . . . . . . 1 . . . Stealth | -11 -10 -10 -9 -9 -9 -8 -8 -7 -6 -5 -5 -5 -5 --------- Run | Scr Mat Min Mat Min Exi Min Mat Fac Fac Fac Upp Upp War Distress Signals 11 | . 1 . 1 1 . . 1 2 2 3 . . . Communications Jammed . | . . . . . . . . . . . . . . Distress Signals . | . . . . . . . . . . . . . . Times Spotted 263 | . 17 3 39 14 . 5 16 54 13 81 5 8 8 Peak Tracking Total 8 | . 3 3 4 3 . 4 6 6 6 7 5 4 8 Tactical Retreats 22 | . 1 . 1 1 . . . 1 2 16 . . . Traps | -11 -10 -10 -9 -9 -9 -8 -8 -7 -6 -5 -5 -5 -5 ------- Run | Scr Mat Min Mat Min Exi Min Mat Fac Fac Fac Upp Upp War Traps Triggered 18 | . 3 . 3 . . . . 5 . 6 1 . . Indirectly . | . . . . . . . . . . . . . . Trap Hack Attempts . | . . . . . . . . . . . . . . Triggered . | . . . . . . . . . . . . . . Disarmed . | . . . . . . . . . . . . . . Reprogrammed . | . . . . . . . . . . . . . . Reused . | . . . . . . . . . . . . . . Traps Extracted . | . . . . . . . . . . . . . . Installed . | . . . . . . . . . . . . . . Triggered 11 | . . . . . . . . . . 3 . 1 7 Machines | -11 -10 -10 -9 -9 -9 -8 -8 -7 -6 -5 -5 -5 -5 ---------- Run | Scr Mat Min Mat Min Exi Min Mat Fac Fac Fac Upp Upp War Machines Disabled 19 | . 2 . 3 . . . 8 4 . 2 . . . Max in Single Turn 2 | . 2 . 1 . . . 2 1 . 1 . . . Garrison Access 2 | . . . . . . . 1 . . 1 . . . Machines Sabotaged . | . . . . . . . . . . . . . . Garrisons Compromised 1 | . . . . . . . . . . 1 . . . Overloaded Fab Kills . | . . . . . . . . . . . . . . Hacking | -11 -10 -10 -9 -9 -9 -8 -8 -7 -6 -5 -5 -5 -5 --------- Run | Scr Mat Min Mat Min Exi Min Mat Fac Fac Fac Upp Upp War Machines Accessed 66 | . 6 . 4 1 1 . 5 11 4 26 . . 8 Terminals 39 | . 6 . 4 . . . 4 9 4 12 . . . Fabricators 3 | . . . . . . . . . . 3 . . . Repair Stations 6 | . . . . . . . 1 1 . 4 . . . Recycling Units 3 | . . . . . . . . . . 3 . . . Scanalyzers 3 | . . . . . . . . 1 . 2 . . . Garrison Access 2 | . . . . . . . . . . 2 . . . Total Hacks 178 | . 19 . 12 1 1 . 17 28 13 75 . . 12 Successful 103 | . 12 . 6 1 1 . 6 15 5 45 . . 12 Failed 75 | . 7 . 6 . . . 11 13 8 30 . . . Catastrophic 8 | . . . . . . . . 2 2 4 . . . Database Lockouts . | . . . . . . . . . . . . . . Manual 77 | . 15 . 10 . 1 . 15 12 12 12 . . . Terminals 120 | . 19 . 12 . . . 16 22 13 38 . . . Fabricators 7 | . . . . . . . . . . 7 . . . Repair Stations 16 | . . . . . . . 1 2 . 13 . . . Recycling Units 8 | . . . . . . . . . . 8 . . . Scanalyzers 10 | . . . . . . . . 4 . 6 . . . Garrison Access 3 | . . . . . . . . . . 3 . . . Terminal Hacks 50 | . 8 . 2 1 1 . 2 3 2 19 . . 12 Record 6 | . . . . . . . . . . . . . 6 Part Schematic 4 | . . . . . . . . 1 . 3 . . . Robot Analysis 6 | . 4 . . . . . 1 . . 1 . . . Prototype ID Bank 6 | . 1 . . . . . . . . 1 . . 4 Open Door 3 | . . . . 1 . . . . . . . . 2 Level Access Points 1 | . . . . . . . . . . 1 . . . Branch Access Points 3 | . 1 . . . . . . 1 . 1 . . . Terminal Index 5 | . 1 . 1 . . . 1 . 1 1 . . . Fabricator Index 1 | . . . . . . . . . . 1 . . . Alert Level 6 | . . . 1 . . . . . 1 4 . . . Unreport Threat 4 | . . . . . . . . . . 4 . . . Locate Traps 2 | . . . . . . . . . . 2 . . . Hauler Manifests 2 | . 1 . . . . . . 1 . . . . . EX-Prototype ID Bank 1 | . . . . . 1 . . . . . . . . Fabricator Hacks 5 | . . . . . . . . . . 5 . . . Network Status 1 | . . . . . . . . . . 1 . . . Load Schematic 2 | . . . . . . . . . . 2 . . . Build 2 | . . . . . . . . . . 2 . . . Repair Station Hacks 11 | . . . . . . . 1 2 . 8 . . . Scan Component 6 | . . . . . . . 1 1 . 4 . . . Repair 4 | . . . . . . . . 1 . 3 . . . Refit 1 | . . . . . . . . . . 1 . . . Recycling Unit Hacks 5 | . . . . . . . . . . 5 . . . Process 1 | . . . . . . . . . . 1 . . . Report Inventory 2 | . . . . . . . . . . 2 . . . Retrieve Matter 2 | . . . . . . . . . . 2 . . . Scanalyzer 7 | . . . . . . . . 4 . 3 . . . Insert Component 4 | . . . . . . . . 2 . 2 . . . Analyze 3 | . . . . . . . . 2 . 1 . . . Garrison Access Hacks 1 | . . . . . . . . . . 1 . . . Seal Access 1 | . . . . . . . . . . 1 . . . Unauthorized Hacks 24 | . 4 . 4 . . . 3 6 3 4 . . . Terminals 24 | . 4 . 4 . . . 3 6 3 4 . . . Assimilate 2 | . . . . . . . . 2 . . . . . Botnet 22 | . 4 . 4 . . . 3 4 3 4 . . . Fabricators . | . . . . . . . . . . . . . . Repair Stations . | . . . . . . . . . . . . . . Recycling Units . | . . . . . . . . . . . . . . Scanalyzers . | . . . . . . . . . . . . . . Garrison Access . | . . . . . . . . . . . . . . Data Cores Recovered . | . . . . . . . . . . . . . . Used . | . . . . . . . . . . . . . . Hacking Detections 52 | . 5 . 4 . . . 4 11 4 24 . . . Full Trace Events 14 | . 2 . 3 . . . . 3 . 6 . . . Feedback Events 1 | . . . . . . . . . . 1 . . . Hackware Fried 1 | . . . . . . . . . . 1 . . . Feedback Blocked . | . . . . . . . . . . . . . . Robot Schematics Acquired . | . . . . . . . . . . . . . . Robots Built . | . . . . . . . . . . . . . . Authchips . | . . . . . . . . . . . . . . Time . | . . . . . . . . . . . . . . Total Robot Build Rating . | . . . . . . . . . . . . . . Part Schematics Acquired 7 | . . . . . . . . 3 . 4 . . . Parts Built 2 | . . . . . . . . . . 2 . . . Authchips . | . . . . . . . . . . . . . . Time 137 | . . . . . . . . . . 137 . . . Total Part Build Rating 6 | . . . . . . . . . . 6 . . . Parts Repaired 4 | . . . . . . . . 1 . 3 . . . Time 183 | . . . . . . . . 70 . 113 . . . Parts Recycled . | . . . . . . . . . . . . . . Recycled Matter 197 | . . . . . . . . . . 197 . . . Retrieved Matter 244 | . . . . . . . . . . 244 . . . Retrieved Components . | . . . . . . . . . . . . . . Parts Scanalyzed 4 | . . . . . . . . 2 . 2 . . . Part Schematics Acquired 3 | . . . . . . . . 2 . 1 . . . Parts Damaged . | . . . . . . . . . . . . . . Bothacking | -11 -10 -10 -9 -9 -9 -8 -8 -7 -6 -5 -5 -5 -5 ------------ Run | Scr Mat Min Mat Min Exi Min Mat Fac Fac Fac Upp Upp War Used RIF Installer . | . . . . . . . . . . . . . . Robots Hacked . | . . . . . . . . . . . . . . Non-combat . | . . . . . . . . . . . . . . Combat . | . . . . . . . . . . . . . . Robot Hacks Applied . | . . . . . . . . . . . . . . Relay Couplers Released . | . . . . . . . . . . . . . . Fabnet Peak Effective % . | . . . . . . . . . . . . . . Robots Rewired . | . . . . . . . . . . . . . . Allies Hacked . | . . . . . . . . . . . . . . Hacks Repelled . | . . . . . . . . . . . . . . Allies | -11 -10 -10 -9 -9 -9 -8 -8 -7 -6 -5 -5 -5 -5 -------- Run | Scr Mat Min Mat Min Exi Min Mat Fac Fac Fac Upp Upp War Total Allies 11 | . . 3 . 3 . . . 5 . . . . . Largest Group 3 | . . 3 2 3 3 3 3 3 1 . . . . Highest-Rated Group 93 | . . 74 62 40 40 40 40 93 10 . . . . Highest-Rated Ally 31 | . . 31 31 16 16 16 16 31 10 . . . . Total Orders 2 | . . . . . . . . . 2 . . . . EXPLORE 2 | . . . . . . . . . 2 . . . . Ally Attacks 75 | . . . 20 . . 4 28 23 . . . . . Total Damage 965 | . . . 314 . . 46 349 256 . . . . . Kills 19 | . . . 6 . . 2 5 6 . . . . . Allies Corrupted . | . . . . . . . . . . . . . . Allies Melted . | . . . . . . . . . . . . . . Intel | -11 -10 -10 -9 -9 -9 -8 -8 -7 -6 -5 -5 -5 -5 ------- Run | Scr Mat Min Mat Min Exi Min Mat Fac Fac Fac Upp Upp War Robot Analysis Total 6 | . 4 . . . . . 1 . . 1 . . . Derelict Logs Recovered 5 | . . 2 . 2 . . . . . . 1 . . Drone Launches 2 | . . . . . . . . . 2 . . . . Drone Recoveries . | . . . . . . . . . . . . . . Exploration | -11 -10 -10 -9 -9 -9 -8 -8 -7 -6 -5 -5 -5 -5 ------------- Run | Scr Mat Min Mat Min Exi Min Mat Fac Fac Fac Upp Upp War Turns Passed 16439 | 47 942 376 1604 842 336 275 391 3548 1716 4434 417 813 698 Spaces Moved 9558 | 38 613 263 797 435 227 172 243 1657 1188 2611 341 401 572 Core 2 | 2 . . . . . . . . . . . . . Treads 223 | . . . . . . . . 223 . . . . . Legs 4381 | . . . . 40 . . . 34 1188 1805 341 401 572 Wheels 4952 | 36 613 263 797 395 227 172 243 1400 . 806 . . . Hover . | . . . . . . . . . . . . . . Flight . | . . . . . . . . . . . . . . Fastest Speed 50 | 50 90 135 135 140 140 140 125 125 90 97 110 112 110 Average Speed 134 | 91 128 135 159 154 147 140 130 165 110 114 115 189 112 Slowest Speed 570 | 100 135 135 210 270 155 140 155 570 183 195 190 190 270 Overloaded Moves . | . . . . . . . . . . . . . . Propulsion Burnouts . | . . . . . . . . . . . . . . Robots Hopped . | . . . . . . . . . . . . . . Cave-ins Triggered . | . . . . . . . . . . . . . . Exploration Rate (%) 53 | 3 79 51 79 89 60 49 32 42 32 54 57 60 67 Regions Visited 13 Branch Regions 7 Pre-discovered Areas 2 | . . 1 . 1 . . . . . . . . . Known Exits Taken 3 | . 1 . . . . . 1 . . 1 . . . Unknown Exits Taken 10 | 1 . 1 1 1 1 1 . 1 1 . 1 1 . Scrap Searched 3 | . . 1 . . . 1 . . . . 1 . . Spaces Dug 29 | . . . . . . . . 3 5 21 . . . Terrain Destroyed 356 | . 8 11 3 9 . 20 136 13 27 50 29 45 5 Melee 29 | . . . . . . . . 3 5 21 . . . Projectile 45 | . . . . . . . . . . 12 8 20 5 AOE 273 | . 8 11 3 9 . 20 136 10 22 8 21 25 . Terrain Rammed . | . . . . . . . . . . . . . . Walls Destroyed . | . . . . . . . . . . . . . . Machines Disabled . | . . . . . . . . . . . . . . Actions | -11 -10 -10 -9 -9 -9 -8 -8 -7 -6 -5 -5 -5 -5 --------- Run | Scr Mat Min Mat Min Exi Min Mat Fac Fac Fac Upp Upp War Total 12027 | 47 703 281 960 527 229 202 292 2232 1517 3632 355 426 624 Wait 1404 | . 27 14 30 31 . 26 14 316 231 687 4 6 18 Move 9545 | 37 612 262 796 434 226 171 242 1656 1187 2610 340 400 572 Hop . | . . . . . . . . . . . . . . Pick Up 101 | 5 18 1 17 2 . . 5 14 10 24 . . 5 Fast Attach 122 | 4 3 . 6 7 1 . 4 31 13 38 2 1 12 Attach 72 | . 4 . 4 4 1 . 1 26 6 20 2 3 1 Detach 31 | . . . 1 1 1 . . 12 6 8 . . 2 Swap 68 | 1 3 3 3 3 . 1 2 13 5 25 3 3 3 Drop 131 | . 4 . 16 4 . . 6 30 21 41 . . 9 Fire 377 | . 32 1 87 41 . 4 18 106 5 64 4 13 2 Melee 166 | . . . . . . . . 18 33 115 . . . Ram . | . . . . . . . . . . . . . . Kick . | . . . . . . . . . . . . . . Crush . | . . . . . . . . . . . . . . Escape Stasis 10 | . . . . . . . . 10 . . . . . Rewire . | . . . . . . . . . . . . . . Trap . | . . . . . . . . . . . . . . Miscellaneous . | . . . . . . . . . . . . . . Route ------- -11/Scrapyard -10/Materials (discovered 4 exits: *Mat x2 / *Min x2) -10/Mines -9/Materials (discovered 2 exits: *Mat / *Min) -9/Mines (discovered 3 exits: *Mat / *Exi / [*Zio]) -9/Exiles -8/Mines -8/Materials -7/Factory (discovered 4 exits: *Fac / Sto / *Low x2) -6/Factory (discovered 2 exits: *Fac / [*Low]) -5/Factory (discovered 6 exits: Fac x4 / *Upp x2) -5/Upper Caves -5/Upper Caves -5/Warlord (discovered 1 exit: [*Pro]) History --------- Turn | Location | Event 32 | -11/Scrapyard | Discovered new exit (range 16) 48 | -11/Scrapyard | Entered Materials 147 | -10/Materials | Discovered new exit (range 13) 154 | -10/Materials | Destroyed 8 combat bots 315 | -10/Materials | Build established: Mutant 394 | -10/Materials | Identified exit to Mines 718 | -10/Materials | Discovered new exit (range 15) 990 | -10/Materials | Entered Mines 1036 | -10/Mines | Learned location of Recycling (-7) 1118 | -10/Mines | Received a Mining Laser from a helpful Derelict 1331 | -10/Mines | Discovered new exit (range 13) 1366 | -10/Mines | Entered Materials 1366 | -9/Materials | Accompanied by 2 allies 1366 | -9/Materials | Evolved 2 slots: Utility x2 1371 | -9/Materials | Led the pair of lost Derelicts to an unsafe place 2191 | -9/Materials | Discovered new exit (range 14) 2854 | -9/Materials | Discovered new exit (range 15) 2970 | -9/Materials | Entered Mines 2971 | -9/Mines | Assembled infested the area 2989 | -9/Mines | Discovered new exit (range 8) 3013 | -9/Mines | Met a Derelict bent on vengeance 3061 | -9/Mines | Core integrity fell below 50% 3101 | -9/Mines | A Derelict revealed a hidden shortcut to a safe place 3192 | -9/Mines | Destroyed 7 combat bots 3258 | -9/Mines | Discovered new exit (range 15) 3419 | -9/Mines | Found a damaged Exp. Sensor Array with a note attached 3422 | -9/Mines | Found Prototype Device 3422 | -9/Mines | Identified Exp. Sensor Array 3648 | -9/Mines | Assisted by bots powering up and referring to "LRC-V3" 3696 | -9/Mines | Build established: Scavenger-Mutant 3698 | -9/Mines | Met a Derelict shopkeep closing up shop 3794 | -9/Mines | Deemed a non-threat by the Exiles lab entrance 3812 | -9/Mines | Entered Exiles 3812 | -9/Exiles | Accompanied by 3 allies 3847 | -9/Exiles | Met 8R-AWN 3871 | -9/Exiles | Met EX-HEX 3910 | -9/Exiles | Met EX-BIN 3931 | -9/Exiles | Aligned with FarCom system 3933 | -9/Exiles | Given EX-Vault access code 3965 | -9/Exiles | Opened EX-Vault 3978 | -9/Exiles | Found Latent Energy Streamer 4010 | -9/Exiles | Warned to stay clear of 0b10 Research branches 4055 | -9/Exiles | Met EX-DEC 4136 | -9/Exiles | Discovered new exit (range 10) 4148 | -9/Exiles | Left Exiles lab with Latent Energy Streamer 4148 | -9/Exiles | Entered Mines 4148 | -8/Mines | Accompanied by 3 allies 4400 | -8/Mines | Discovered new exit (range 15) 4423 | -8/Mines | Entered Materials 4423 | -8/Materials | Accompanied by 3 allies 4423 | -8/Materials | Evolved 2 slots: Propulsion x1, Weapon x1 4462 | -8/Materials | Garrison activated, responded to threat 4571 | -8/Materials | System corruption reached 10% 4661 | -8/Materials | Destroyed 11 combat bots 4790 | -8/Materials | Discovered new exit (range 16) 4813 | -8/Materials | Identified exit to Factory 4814 | -8/Materials | Entered Factory 4814 | -7/Factory | Accompanied by 1 ally 4814 | -7/Factory | Evolved 2 slots: Utility x1, Weapon x1 4815 | -7/Factory | Identified exit to Storage 5110 | -7/Factory | Lost 3 parts (2n1w) 5218 | -7/Factory | Allied Derelicts emerged from ambush trap array 5291 | -7/Factory | Repaired Cld. Deuterium Engine 5428 | -7/Factory | Build established: Scavenger-Tank 5698 | -7/Factory | Garrison activated, responded to threat 5728 | -7/Factory | Discovered new exit (range 10) 6013 | -7/Factory | Garrison activated, responded to threat 6291 | -7/Factory | Build established: Skirmisher 6339 | -7/Factory | Garrison activated, responded to threat 6427 | -7/Factory | Lost 7 parts (1p2u4w) 6469 | -7/Factory | Lost 4 parts (1p1u2w) 6701 | -7/Factory | Build established: Mutant 6814 | -7/Factory | First assault squad dispatched 6841 | -7/Factory | Discovered new exit (range 16) 6959 | -7/Factory | Core integrity fell below 50% 7625 | -7/Factory | Identified exit to Lower Caves 7675 | -7/Factory | Build established: Scavenger-Skirmisher 8208 | -7/Factory | Garrison activated, responded to threat 8274 | -7/Factory | Lost 3 parts (1p2n) 8362 | -7/Factory | Entered another Factory area 8362 | -6/Factory | Accompanied by 1 ally 8362 | -6/Factory | Evolved 2 slots: Propulsion x1, Utility x1 8535 | -6/Factory | Build established: Scavenger-Gunner 8838 | -6/Factory | Discovered new exit (range 13) 9123 | -6/Factory | Build established: Scavenger-Mutant 9695 | -6/Factory | Build established: Hacker-Mutant 10073 | -6/Factory | Discovered new exit (range 7) 10078 | -6/Factory | Entered another Factory area 10078 | -5/Factory | Evolved 2 slots: Utility x2 11024 | -5/Factory | Lost 3 parts (3n) 11065 | -5/Factory | Lost 3 parts (1n1u1w) 11336 | -5/Factory | Assembled infested ambush trap array 11421 | -5/Factory | Lost 3 parts (1p1n1u) 11429 | -5/Factory | Destroyed 13 combat bots 11496 | -5/Factory | Identified exit to Upper Caves 11582 | -5/Factory | Fabricated VSS Leg (x2) 11673 | -5/Factory | System corruption reached 10% 11783 | -5/Factory | Cargo convoy interrupted 11820 | -5/Factory | Repaired Arm. Leg 11859 | -5/Factory | Repaired VSS Leg 13296 | -5/Factory | Build established: Scavenger-Gunner 13631 | -5/Factory | Build established: Hacker-Gunner 13648 | -5/Factory | Identified exit to Factory 13648 | -5/Factory | System Shield fried by hacking feedback 13651 | -5/Factory | Core integrity fell below 50% 14203 | -5/Factory | Build established: Gunner 14290 | -5/Factory | Repaired Arm. Leg 14428 | -5/Factory | Lost 5 parts (4u1w) 14512 | -5/Factory | Entered Upper Caves 14536 | -5/Upper Caves | Spotted B-75 Beast 14770 | -5/Upper Caves | Build established: Scavenger-Mutant 14858 | -5/Upper Caves | Learned Factory non-interactive machine intel 14894 | -5/Upper Caves | Discovered new exit (range 8) 14895 | -5/Upper Caves | Attracted the attention of an 0b10 checkpoint 14929 | -5/Upper Caves | Entered another Upper Caves area 15204 | -5/Upper Caves | Build established: Scavenger-Gunner 15434 | -5/Upper Caves | Lost 3 parts (1p1n1w) 15638 | -5/Upper Caves | Attracted the attention of an 0b10 checkpoint 15728 | -5/Upper Caves | Discovered new exit (range 8) 15742 | -5/Upper Caves | Entered Warlord 15779 | -5/Warlord | System corruption cleaned by Quarantine Array 15863 | -5/Warlord | Visited the Vortex Lab 15875 | -5/Warlord | Found Prototype Energy Gun 15875 | -5/Warlord | Identified Vortex Rail 15878 | -5/Warlord | Found Vortex Rail 15879 | -5/Warlord | Warlord's base attacked by MAIN.C 15883 | -5/Warlord | Found Prototype Energy Gun 15883 | -5/Warlord | Identified Vortex Rifle 15885 | -5/Warlord | Found Vortex Rifle 16069 | -5/Warlord | Found Prototype Device 16069 | -5/Warlord | Identified Minesniffer Drone Bay 16229 | -5/Warlord | Warlord forces counterattacked 16388 | -5/Warlord | Opened side exit 16418 | -5/Warlord | Spotted Executioner 16418 | -5/Warlord | Spotted Executioner 16427 | -5/Warlord | Core integrity fell below 20% 16433 | -5/Warlord | Discovered new exit (range 12) 16440 | -5/Warlord | Destroyed by Executioner with Helical Railgun Last Messages --------------- 16426_ Switching to secondary target: Executioner. 16426_ Slug penetrates Wall. 16426_ Penetrated by Slug. 16426_ Slug penetrates Wall. 16429_ Penetrated by Slug. 16429_ Antimatter Reactor destroyed. 16432_ Penetrated by Slug. 16432_ Slug penetrates Wall. 16432_ Imp. Kinecellerator destroyed. 16432_ Penetrated by Slug. 16432_ Slug penetrates Earth. 16433_ EXIT=FOUND 16435_ Arm. Leg destroyed. 16435_ Critical hit (Burn: +50). 16435_ Critical hit (Burn: +37). 16435_ Enh. Coil Gun destroyed. 16438_ Flexi-carbon Leg destroyed. 16438_ Penetrated by Slug. 16438_ Slug penetrates Earth. 16440_ Penetrated by Slug. Map ----- +----------------------------------------------------+ | | | | | | | | | | | | | | | | | ?????????????????????????????????? | | ?????????????????????????????????? | | ?????????????????????????????????? | | ###??????????????????????????????? | | #X#############??????????????????? | | #??????????????????? | | #??????????????????? | | ############ #??????????????????? | | ???????????# #??????????????????? | | ???????????# #???????????#??????? | | ??????????## #?????????## ??????? | | ??????????#" #?????????# #??????? | | ???????####" ##????????#;###????? | | ???????# "# #???????## ###??? | | ???????# " #??????## #### | | ????????#" ##?????## < < | | ?????????# #?????# * [% < | | ?????????# ##????# @% % #??? | | ?????????## #????# [ !;#??? | | ??????????### ###??## ;#??? | | ????????????## ^ " ###;; ;##??? | | ?????????????#" " ; ; ;; #??? | | ?????????????## "";#; %[ ;###??? | | ??????????????# * = #???? | | ??????????????## %= %%[;; #?? | | ???????????????# !=%# # ^ #? | | ???????????????### !%Es*### #? | | ?????????????????# g*g%g=#? ##? | | #???????????????? E!!#? #?? | | #???????????????# !%=## ##? | | #####???????????## ; *=["#?# ?? | | "############?## ###%!="#? ##? | | """"""""""""#??###??#%=!" #??? | | """"""""""""#?####??#!%=*%#???? | | ^ ### ### [!%=!#???? | | + %[%= ????? | | + #?%??????? | | #### ##????????? | | """"""""""""#??## #???? #??? | | """"""""""""#???# #???? ??? | | "############???# ##???? ??? | | #####?????????????## #????? ??? | +----------------------------------------------------+ Best States ------------- Heat Dissipation 71 Energy Generation 21 Energy Capacity 375 Matter Stores 300 Matter Capacity 300 Sight Range 20 Robot Scan Range 20 Terrain Scan Range 16 Terrain Scan Density 10 ECM Strength 2 Armor Coverage 300 Resistance: TH 20 Weapon Shielding 66 Phase Shifting 5 Evasion (%) 60 Targeting Accuracy 8 Launcher Accuracy 30 Target Analysis 6 Core Analysis 6 Armor Integrity Analysis 30 Recoil Reduction 3 Matter Filtering 30 Kinecelleration 40 Offensive Hacking 12 Defensive Hacking 12 Item Schematics ----------------- Imp. Deuterium Engine | -7/Factory | Hacked VSS Leg | -7/Factory | Scanalyzed Arm. Treads | -7/Factory | Scanalyzed Enh. Coil Gun | -5/Factory | Scanalyzed Biometal Leg | -5/Factory | Hacked Imp. KE Penetrator | -5/Factory | Hacked Adv. Heavy Treads | -5/Factory | Hacked Robot Schematics ------------------ None Fabricated ------------ VSS Leg | x2 | -5/Factory Alien Tech Used ----------------- None Achievements -------------- Ambidextrous Challenges ------------ None Game ------ Seed RecyclingChromaticBlade Manual? 0 Play Time 03:41:31 Cumulative 179.4 hours Start 2022.05.18 @ 13:30:54 End 2022.05.19 @ 10:09:17 Sessions 5 Manual Loads 0 Difficulty Rogue Special Mode None Game No. 69 Rogue 62 Adventurer 0 Explorer 7 Win Type - Total 1 Types 0/0/1/0/0/0/0/0/0 Lore% 61 Gallery% 57 Achievement% 48 Wizard Run 0 Options --------- ASCII 0 Keyboard 0 Movement Mouse Keybinds 0 Fullscreen 1 Font 16/Cog Map View 76x50 Tactical HUD 1 Map Filters NONE Filters NONE Steam 1 RUN: dfaaddb5-fd33-4db1-8dad-3defe9dc7694